bitfinex-derivatives/quotes_BTCF0:USTF0_20241010
["timestamp","ask_amount","ask_price","bid_price","bid_amount"]
[1728578651783,0.0004,60515.0,60514.0,0.082702]
[1728578651984,0.03344965,60515.0,60514.0,0.082702]
[1728578652378,1e-08,60515.0,60514.0,1.369462]
[1728578652580,0.00100001,60515.0,60514.0,0.776862]
[1728578652775,0.00100001,60515.0,60514.0,1.376862]
[1728578652983,0.002,60515.0,60514.0,0.091102]
[1728578653380,0.192,60515.0,60514.0,0.091102]
[1728578653883,0.002,60515.0,60514.0,0.091102]
[1728578655282,0.002,60515.0,60514.0,0.092102]
[1728578655483,0.002,60515.0,60514.0,0.096102]
[1728578656092,0.082698,60518.0,60517.0,0.082698]
[1728578656288,0.19,60518.0,60517.0,0.082699]
[1728578656493,0.082691,60523.0,60521.0,0.082693]
[1728578656687,0.082691,60523.0,60517.0,0.3608]
[1728578656991,0.0004,60518.0,60517.0,0.443499]
[1728578657193,0.0004,60518.0,60517.0,0.633499]
[1728578657793,0.0004,60518.0,60517.0,1.729219]
[1728578657991,0.0004,60530.0,60529.0,0.082683]
[1728578658994,0.0004,60530.0,60529.0,1.178323]
[1728578659194,0.0004,60538.0,60537.0,0.082672]
[1728578659396,0.0004,60538.0,60537.0,0.272672]
[1728578659591,0.0004,60538.0,60537.0,0.082672]
[1728578659985,0.0004,60538.0,60537.0,0.272672]
[1728578660391,0.0004,60538.0,60537.0,0.082672]
[1728578661002,0.0034,60538.0,60537.0,0.082672]
[1728578662502,0.0084,60538.0,60537.0,0.082672]
[1728578662694,0.0084,60538.0,60537.0,0.272672]
[1728578663999,0.0084,60538.0,60537.0,0.082672]
[1728578664302,0.0084,60538.0,60537.0,0.272672]
[1728578664925,0.0084,60538.0,60537.0,1.368232]
[1728578665700,0.0084,60538.0,60537.0,0.082672]
[1728578666392,0.1984,60538.0,60537.0,0.082672]
[1728578666594,0.281071,60538.0,60537.0,0.082672]
[1728578666792,0.281071,60538.0,60535.0,0.3608]
[1728578666793,0.082673,60536.0,60535.0,0.3608]
[1728578667004,0.083073,60536.0,60535.0,0.443475]
[1728578667399,0.0004,60536.0,60535.0,0.443475]
[1728578668094,0.0034,60536.0,60535.0,0.443475]
[1728578670192,0.0044,60536.0,60535.0,0.443475]
[1728578674901,0.082667,60541.0,60540.0,0.082668]
[1728578675203,0.272667,60541.0,60540.0,0.082668]
[1728578676209,0.272667,60541.0,60537.0,0.0004]
[1728578676210,0.082671,60538.0,60537.0,0.0004]
[1728578676399,0.272671,60538.0,60537.0,0.083072]
[1728578676600,0.273071,60538.0,60537.0,0.0004]
[1728578677311,0.273071,60538.0,60537.0,0.083072]
[1728578677612,0.273071,60538.0,60537.0,0.0004]
[1728578678913,0.277071,60538.0,60537.0,0.0004]
[1728578679407,0.2944,60538.0,60529.0,0.08259148]
[1728578679610,0.443882,60530.0,60529.0,0.01659148]
[1728578679808,0.082684,60528.0,60527.0,1e-08]
[1728578679999,0.082687,60526.0,60525.0,0.082687]
[1728578680203,0.083087,60526.0,60525.0,0.082687]
[1728578680409,0.0004,60526.0,60525.0,0.082687]
[1728578680612,0.083087,60526.0,60525.0,0.082687]
[1728578681503,0.082695,60520.0,60519.0,0.082696]
[1728578681698,0.273095,60520.0,60519.0,0.082696]
[1728578682207,1.468815,60520.0,60517.0,0.0004]
[1728578682408,0.083098,60518.0,60517.0,0.083099]
[1728578683408,0.12359927,60518.0,60517.0,0.083099]
[1728578684307,0.12359927,60518.0,60517.0,0.090099]
[1728578684308,0.12459927,60518.0,60517.0,0.090099]
[1728578684507,0.12459927,60518.0,60517.0,0.095099]
[1728578685007,0.12459927,60518.0,60517.0,0.0124]
[1728578685807,0.12459927,60518.0,60517.0,0.095099]
[1728578686319,0.084098,60518.0,60517.0,0.0124]
[1728578686621,0.084098,60518.0,60517.0,0.095099]
[1728578688412,0.0014,60518.0,60517.0,0.095099]
[1728578688609,0.0014,60518.0,60517.0,0.455899]
[1728578689910,0.0004,60520.0,60517.0,0.455899]
[1728578690109,0.0004,60520.0,60519.0,0.272697]
[1728578691331,0.0004,60528.0,60525.0,0.082688]
[1728578691635,0.0004,60530.0,60525.0,0.082688]
[1728578691636,0.0004,60530.0,60525.0,0.633488]
[1728578691917,0.0004,60530.0,60529.0,0.082683]
[1728578692219,0.0004,60530.0,60529.0,0.272683]
[1728578692521,0.0004,60538.0,60532.0,0.082679]
[1728578692706,0.0004,60538.0,60532.0,0.633479]
[1728578693421,0.0004,60538.0,60537.0,0.082672]
[1728578693610,0.0004,60538.0,60537.0,0.633472]
[1728578694909,0.5508,60553.0,60543.0,0.082664]
[1728578694910,0.3608,60553.0,60543.0,0.082664]
[1728578695219,0.3608,60553.0,60543.0,0.633464]
[1728578696317,0.04443382,60544.0,60543.0,0.634464]
[1728578696924,0.13564883,60544.0,60543.0,0.634464]
[1728578697220,0.20738559,60544.0,60543.0,0.634464]
[1728578697616,0.26712234,60544.0,60543.0,0.635464]
[1728578697811,0.3076006,60544.0,60543.0,0.635464]
[1728578699314,0.14464883,60544.0,60543.0,0.635464]
[1728578699531,0.3076006,60544.0,60543.0,0.635464]
[1728578700428,0.14464883,60544.0,60543.0,0.445464]
[1728578700615,0.22731183,60544.0,60543.0,0.3628]
[1728578700810,0.08267,60540.0,60539.0,0.082669]
[1728578701015,0.12354826,60540.0,60539.0,0.082669]
[1728578701216,0.27406764,60540.0,60539.0,0.082669]
[1728578701519,0.082671,60538.0,60537.0,0.083072]
[1728578701721,0.13341768,60538.0,60537.0,0.0004]
[1728578701926,0.13341768,60538.0,60537.0,0.083072]
[1728578702127,0.17390386,60538.0,60537.0,0.083072]
[1728578702325,0.23319038,60538.0,60537.0,0.083072]
[1728578703031,0.23719038,60538.0,60537.0,0.083072]
[1728578703334,0.43019038,60538.0,60537.0,0.0004]
[1728578703934,1.64575038,60538.0,60537.0,0.0004]
[1728578704824,1.495231,60538.0,60537.0,0.0004]
[1728578706335,0.399671,60538.0,60537.0,0.0004]
[1728578707533,0.895231,60538.0,60537.0,0.0004]
[1728578707733,1.495231,60538.0,60537.0,0.0004]
[1728578708028,1.856031,60538.0,60537.0,0.0004]
[1728578708232,0.082682,60530.0,60525.0,0.0004]
[1728578708420,0.633484,60528.0,60525.0,0.083088]
[1728578708625,0.633884,60528.0,60525.0,0.083088]
[1728578708936,1.770824,60528.0,60525.0,0.0004]
[1728578709233,0.785184,60528.0,60527.0,0.083086]
[1728578710232,0.786184,60528.0,60527.0,0.096086]
[1728578710629,0.596184,60528.0,60527.0,0.096086]
[1728578711337,0.0014,60528.0,60527.0,0.096086]
[1728578711835,0.084084,60528.0,60527.0,0.096086]
[1728578712038,0.084084,60528.0,60527.0,0.093086]
[1728578712241,0.274084,60528.0,60527.0,0.0104]
[1728578712535,0.374084,60528.0,60527.0,0.093086]
[1728578712737,0.084084,60528.0,60527.0,0.093086]
[1728578712938,0.0014,60528.0,60527.0,0.280086]
[1728578713233,0.0014,60528.0,60527.0,0.277086]
[1728578713234,0.0004,60528.0,60527.0,0.277086]
[1728578713437,0.0004,60528.0,60527.0,0.282086]
[1728578714031,0.0004,60528.0,60527.0,0.277086]
[1728578714236,0.0004,60528.0,60527.0,0.088086]
[1728578715140,0.0004,60528.0,60527.0,0.084086]
[1728578715336,0.0014,60528.0,60527.0,0.090086]
[1728578715644,0.0014,60528.0,60527.0,0.450886]
[1728578715940,0.0014,60528.0,60527.0,0.454886]
[1728578716642,0.0014,60528.0,60527.0,0.450886]
[1728578716845,0.0014,60528.0,60527.0,0.454886]
[1728578717031,0.0014,60528.0,60527.0,0.453886]
[1728578717532,0.0004,60528.0,60527.0,0.447886]
[1728578717840,0.0014,60528.0,60527.0,0.453886]
[1728578718740,0.0014,60528.0,60527.0,0.093086]
[1728578720636,0.084084,60528.0,60527.0,0.093086]
[1728578720838,0.0014,60528.0,60527.0,0.093086]
[1728578721538,0.0014,60528.0,60527.0,0.643886]
[1728578721749,0.083069,60540.0,60539.0,0.082669]
[1728578722041,0.0604,60540.0,60539.0,0.082669]
[1728578722751,0.0004,60540.0,60539.0,0.082669]
[1728578723047,0.0094,60540.0,60539.0,0.083669]
[1728578723236,0.0094,60540.0,60539.0,0.084669]
[1728578723442,0.0164,60540.0,60539.0,0.084669]
[1728578723837,0.0164,60540.0,60539.0,0.274669]
[1728578724353,0.0094,60540.0,60539.0,0.273669]
[1728578724552,0.0094,60540.0,60539.0,0.274669]
[1728578724553,0.0144,60540.0,60539.0,0.274669]
[1728578724754,0.0144,60540.0,60539.0,0.13408358]
[1728578724968,0.0054,60540.0,60539.0,0.13308358]
[1728578725137,0.0124,60540.0,60539.0,0.13408358]
[1728578725642,0.0124,60540.0,60539.0,0.084669]
[1728578726151,0.0124,60540.0,60539.0,0.13408358]
[1728578726545,0.0124,60540.0,60539.0,0.084669]
[1728578726740,0.0124,60540.0,60539.0,0.274669]
[1728578726954,0.03343382,60544.0,60539.0,0.274669]
[1728578727253,0.03343382,60544.0,60543.0,0.633464]
[1728578728254,0.03843382,60544.0,60543.0,0.633464]
[1728578728442,0.04543382,60544.0,60543.0,0.633464]
[1728578728640,0.04543382,60544.0,60543.0,0.634464]
[1728578728641,0.04943382,60544.0,60543.0,0.634464]
[1728578729448,0.05343382,60544.0,60543.0,0.635464]
[1728578729649,0.05343382,60544.0,60543.0,0.445464]
[1728578730552,0.05343382,60544.0,60543.0,0.635464]
[1728578734052,0.18363711,60544.0,60543.0,0.635464]
[1728578734351,0.22411529,60544.0,60543.0,0.445464]
[1728578734552,0.093912,60544.0,60543.0,0.445464]
[1728578734760,0.25695619,60544.0,60543.0,0.635464]
[1728578735052,0.30769136,60544.0,60543.0,0.635464]
[1728578735549,0.14464876,60544.0,60543.0,0.635464]
[1728578737554,0.21640519,60544.0,60543.0,0.635464]
[1728578737758,0.25688337,60544.0,60543.0,0.635464]
[1728578738254,0.093912,60544.0,60543.0,0.635464]
[1728578739151,0.283912,60544.0,60543.0,0.445464]
[1728578739352,0.41731203,60544.0,60543.0,0.445464]
[1728578739851,0.46011203,60544.0,60543.0,0.445464]
[1728578740061,0.46011203,60544.0,60543.0,0.002]
[1728578740062,0.63914156,60544.0,60543.0,0.002]
[1728578740356,0.60591203,60544.0,60543.0,0.002]
[1728578741357,0.76883896,60544.0,60543.0,0.002]
[1728578741555,0.82813512,60544.0,60543.0,0.002]
[1728578741854,0.66520819,60544.0,60543.0,0.002]
[1728578742159,0.51469682,60544.0,60543.0,0.002]
[1728578743049,1.61021682,60544.0,60543.0,0.002]
[1728578743245,1.61021682,60544.0,60539.0,0.0004]
[1728578743246,0.082668,60540.0,60539.0,0.0004]
[1728578743446,0.733868,60540.0,60539.0,0.0004]
[1728578743661,1.829428,60540.0,60539.0,0.0004]
[1728578744951,1.829428,60540.0,60539.0,0.0014]
[1728578745158,1.835428,60540.0,60539.0,0.0014]
[1728578746560,1.835428,60540.0,60539.0,0.084069]
[1728578746561,0.094068,60540.0,60539.0,0.084069]
[1728578746766,0.094068,60540.0,60539.0,0.0014]
[1728578747464,0.094068,60540.0,60539.0,0.084069]
[1728578748060,0.094068,60540.0,60539.0,0.0014]
[1728578748664,0.094068,60540.0,60539.0,0.084069]
[1728578748860,0.194068,60540.0,60539.0,0.0014]
[1728578749173,0.082676,60534.0,60533.0,0.082676]
[1728578749358,0.082676,60534.0,60530.0,0.082681]
[1728578749359,0.082682,60531.0,60530.0,0.082681]
[1728578749667,0.12317182,60531.0,60530.0,0.082681]
[1728578750167,0.2535766,60531.0,60530.0,0.082681]
[1728578750554,0.12317182,60531.0,60530.0,0.090681]
[1728578750859,0.2535766,60531.0,60530.0,0.090681]
[1728578751057,0.12317182,60531.0,60530.0,0.090681]
[1728578753963,0.25357763,60531.0,60530.0,0.090681]
[1728578754274,0.12317182,60531.0,60530.0,0.090681]
[1728578754458,0.04048982,60531.0,60530.0,0.090681]
[1728578754655,0.04048982,60531.0,60530.0,0.280681]
[1728578754855,0.13040581,60533.0,60530.0,0.198]
[1728578754856,0.04048982,60532.0,60530.0,0.198]
[1728578755063,0.04048982,60532.0,60531.0,0.44348]
[1728578755278,0.13039983,60533.0,60532.0,0.082679]
[1728578755563,0.13039983,60533.0,60531.0,0.48818]
[1728578755564,0.13039983,60533.0,60531.0,0.67978]
[1728578755757,0.0004,60534.0,60533.0,0.082678]
[1728578756563,0.04088868,60534.0,60533.0,0.082678]
[1728578757068,0.082675,60535.0,60533.0,0.06783508]
[1728578757262,0.082675,60535.0,60534.0,0.082676]
[1728578758968,0.083675,60535.0,60534.0,0.082676]
[1728578759364,0.083675,60535.0,60534.0,0.083676]
[1728578760660,0.001,60535.0,60534.0,0.083676]
[1728578761069,0.001,60535.0,60534.0,0.14951108]
[1728578761268,0.001,60535.0,60534.0,0.083676]
[1728578761563,0.0004,60540.0,60539.0,0.082669]
[1728578762570,0.03343382,60544.0,60543.0,0.082664]
[1728578762756,0.082645,60557.0,60544.0,0.082663]
[1728578762963,0.082645,60557.0,60549.0,0.5508]
[1728578763166,0.0004,60561.0,60549.0,0.7593596]
[1728578763368,0.0004,60561.0,60560.0,0.082641]
[1728578763564,0.083039,60561.0,60560.0,0.082641]
[1728578764077,0.0004,60561.0,60556.0,0.3608]
[1728578764274,0.1904,60561.0,60556.0,0.3608]
[1728578764462,0.082643,60559.0,60557.0,0.082645]
[1728578764769,0.082643,60559.0,60556.0,0.3608]
[1728578764967,0.082643,60559.0,60558.0,0.082643]
[1728578765562,0.1904,60561.0,60556.0,0.3608]
[1728578765563,0.082645,60557.0,60556.0,0.3608]
[1728578765774,0.272645,60557.0,60556.0,0.3608]
[1728578766668,0.272645,60557.0,60556.0,0.3618]
[1728578767565,0.280645,60557.0,60556.0,0.445446]
[1728578767773,0.008,60557.0,60556.0,0.445446]
[1728578768168,0.017,60557.0,60556.0,0.445446]
[1728578770379,0.099645,60557.0,60556.0,0.445446]
[1728578770567,0.099645,60557.0,60556.0,0.3628]
[1728578770568,0.289645,60557.0,60556.0,0.3628]
[1728578771271,0.289645,60557.0,60556.0,0.002]
[1728578771272,0.650445,60557.0,60556.0,0.002]
[1728578771779,0.082649,60554.0,60553.0,0.0004]
[1728578772077,0.082649,60554.0,60553.0,0.00031088]
[1728578772078,0.35316101,60554.0,60553.0,0.00031088]
[1728578772372,0.082657,60548.0,60547.0,0.00247702]
[1728578772579,0.17387898,60548.0,60547.0,0.00247702]
[1728578772769,0.23316901,60548.0,60547.0,0.00247702]
[1728578773472,1.43865239,60548.0,60547.0,0.00247702]
[1728578773664,1.43865239,60548.0,60547.0,0.00447702]
[1728578774067,1.50649368,60548.0,60547.0,0.00447702]
[1728578774367,1.50649368,60548.0,60547.0,0.00348704]
[1728578774777,1.50649368,60548.0,60539.0,0.0004]
[1728578774778,0.082668,60540.0,60539.0,0.0004]
[1728578774976,0.59438339,60540.0,60539.0,0.0004]
[1728578775372,0.68818339,60540.0,60539.0,0.0004]
[1728578776275,0.68818339,60540.0,60527.0,0.0008]
[1728578776276,0.082684,60528.0,60527.0,0.0008]
[1728578776582,0.83510936,60528.0,60527.0,0.0008]
[1728578776771,1.99003939,60528.0,60527.0,0.0008]
[1728578776970,2.05788068,60528.0,60525.0,0.0004]
[1728578777282,0.083087,60526.0,60525.0,0.0004]
[1728578777485,0.34360239,60526.0,60525.0,0.0004]
[1728578777678,1.53114239,60526.0,60525.0,0.0004]
[1728578778177,1.53114239,60526.0,60525.0,0.0003172]
[1728578779174,1.380627,60526.0,60525.0,0.0003172]
[1728578780281,1.382627,60526.0,60525.0,0.0173172]
[1728578780977,0.082695,60520.0,60517.0,0.0008]
[1728578781171,0.272698,60518.0,60517.0,0.0008]
[1728578781680,0.273098,60518.0,60517.0,0.0008]
[1728578783183,0.273098,60518.0,60517.0,0.0108]
[1728578783885,0.39777672,60518.0,60517.0,0.0008]
[1728578784082,0.39877672,60518.0,60517.0,0.0108]
[1728578784487,0.39977672,60518.0,60517.0,0.0108]
[1728578787187,0.195098,60518.0,60517.0,0.093499]
[1728578789185,0.195098,60518.0,60517.0,0.0108]
[1728578789573,0.195098,60518.0,60517.0,0.093499]
[1728578790380,0.195098,60518.0,60517.0,0.0108]
[1728578790985,0.195098,60518.0,60517.0,0.093499]
[1728578791485,0.195098,60518.0,60517.0,0.0108]
[1728578800484,0.385098,60518.0,60517.0,0.0108]
[1728578801699,0.575098,60518.0,60517.0,0.0108]
[1728578801998,0.385098,60518.0,60517.0,0.0108]
[1728578803493,0.195098,60518.0,60517.0,0.0108]
[1728578803696,0.385098,60518.0,60517.0,0.0108]
[1728578804896,0.745898,60518.0,60517.0,0.0108]
[1728578805409,0.635898,60518.0,60517.0,0.0108]
[1728578805596,0.755898,60518.0,60517.0,0.0108]
[1728578806890,0.565898,60518.0,60517.0,0.0108]
[1728578807094,0.755898,60518.0,60517.0,0.0108]
[1728578807292,0.755898,60518.0,60517.0,0.093499]
[1728578807293,0.57447043,60518.0,60517.0,0.093499]
[1728578807487,0.04290285,60518.0,60517.0,0.283499]
[1728578807692,0.5508,60525.0,60517.0,0.779219]
[1728578807693,0.02916567,60519.0,60517.0,0.779219]
[1728578807886,0.272691,60524.0,60523.0,0.08269]
[1728578808090,0.272691,60524.0,60523.0,0.3608]
[1728578808295,0.082698,60518.0,60517.0,0.093899]
[1728578808596,0.273098,60518.0,60517.0,0.093899]
[1728578809002,0.273098,60518.0,60517.0,0.083899]
[1728578809301,0.1490233,60518.0,60517.0,0.36333581]
[1728578809802,0.1490233,60518.0,60517.0,0.28063681]
[1728578810000,0.2317213,60518.0,60517.0,0.12723345]
[1728578810198,0.2317213,60518.0,60517.0,0.22643839]
[1728578810501,0.3527213,60518.0,60517.0,0.13723658]
[1728578811600,0.3537213,60518.0,60517.0,0.14023658]
[1728578812305,0.3537213,60518.0,60517.0,0.22293558]
[1728578812505,0.205098,60518.0,60517.0,0.32214052]
[1728578812693,0.395098,60518.0,60517.0,0.23944152]
[1728578813198,0.395098,60518.0,60517.0,0.14023658]
[1728578815100,0.395098,60518.0,60517.0,0.14024531]
[1728578815801,0.205098,60518.0,60517.0,0.14024531]
[1728578816007,0.205098,60518.0,60517.0,0.41294431]
[1728578816204,0.085098,60518.0,60517.0,0.56568211]
[1728578817507,0.085098,60518.0,60517.0,0.41294431]
[1728578817695,0.0024,60518.0,60517.0,0.56544873]
[1728578817899,0.0004,60526.0,60522.0,0.082688]
[1728578818099,0.082688,60525.0,60524.0,0.18188927]
[1728578818313,0.182688,60525.0,60524.0,0.20873431]
[1728578819208,0.183688,60525.0,60524.0,0.21073431]
[1728578819510,0.373688,60525.0,60524.0,0.12804531]
[1728578821509,0.374688,60525.0,60524.0,0.13704531]
[1728578822307,0.374688,60525.0,60524.0,0.21966713]
[1728578823215,0.374688,60525.0,60524.0,0.21966592]
[1728578823712,0.374688,60525.0,60524.0,0.09362061]
[1728578823914,0.374688,60525.0,60524.0,0.011]
[1728578824520,0.082698,60518.0,60517.0,0.0016]
[1728578824701,0.29251928,60518.0,60517.0,0.0016]
[1728578825014,0.34368529,60518.0,60517.0,0.0016]
[1728578825907,0.34468529,60518.0,60517.0,0.096299]
[1728578826210,0.34468673,60518.0,60517.0,0.096299]
[1728578826401,0.34468673,60518.0,60517.0,0.0136]
[1728578827608,0.3446879,60518.0,60517.0,0.0136]
[1728578828509,0.3456879,60518.0,60517.0,0.0136]
[1728578828907,0.3456879,60518.0,60517.0,0.096299]
[1728578829113,0.28636822,60518.0,60517.0,0.286299]
[1728578829316,0.33941722,60518.0,60517.0,0.286299]
[1728578830102,0.31603754,60518.0,60517.0,1.142819]
[1728578830312,0.15298854,60518.0,60517.0,1.142819]
[1728578830612,0.14675864,60524.0,60521.0,0.082694]
[1728578830807,0.0004,60528.0,60521.0,0.082694]
[1728578830808,0.14675864,60525.0,60524.0,0.27269]
[1728578831014,0.14715864,60528.0,60525.0,0.082688]
[1728578831315,0.13078326,60526.0,60525.0,0.578368]
[1728578831509,0.0004,60526.0,60525.0,1.178368]
[1728578831710,0.0004,60528.0,60527.0,0.082686]
[1728578832208,0.0004,60528.0,60527.0,0.578326]
[1728578832415,0.0004,60528.0,60527.0,0.70432642]
[1728578832906,0.0004,60528.0,60527.0,0.20868642]
[1728578833412,0.0014,60528.0,60527.0,0.30865725]
[1728578833909,0.0014,60528.0,60527.0,0.39968642]
[1728578834301,0.0024,60528.0,60527.0,0.40468642]
[1728578835102,0.0014,60528.0,60527.0,0.39968642]
[1728578835302,0.0024,60528.0,60527.0,0.40468642]
[1728578835714,0.0014,60528.0,60527.0,0.76448642]
[1728578836018,0.0024,60528.0,60527.0,0.76648642]
[1728578836517,0.0024,60528.0,60527.0,1.86012642]
[1728578836518,0.0014,60528.0,60527.0,1.86012642]
[1728578836717,0.0014,60528.0,60527.0,1.86212642]
[1728578836718,0.0024,60528.0,60527.0,1.86212642]
[1728578836913,0.0024,60528.0,60527.0,1.85712642]
[1728578837124,0.0024,60528.0,60527.0,1.86112642]
[1728578838917,0.0024,60528.0,60527.0,0.57548642]
[1728578839110,0.085084,60528.0,60527.0,0.57548642]
[1728578839307,0.19,60530.0,60527.0,0.449486]
[1728578839517,0.082684,60528.0,60527.0,0.449886]
[1728578840613,0.082684,60528.0,60527.0,0.004]
[1728578840614,0.192684,60528.0,60527.0,0.004]
[1728578841617,0.082687,60526.0,60525.0,0.0004]
[1728578841819,0.273087,60526.0,60525.0,0.0004]
[1728578842209,0.083087,60526.0,60525.0,0.083088]
[1728578842411,0.0004,60526.0,60525.0,0.083088]
[1728578843313,0.0014,60526.0,60525.0,0.086088]
[1728578844120,0.129387,60526.0,60525.0,0.086088]
[1728578849022,0.0014,60526.0,60525.0,0.086088]
[1728578849224,0.126373,60537.0,60525.0,1.181728]
[1728578849427,0.126373,60537.0,60536.0,0.082673]
[1728578849731,0.126373,60537.0,60533.0,0.082677]
[1728578849913,0.0004,60534.0,60533.0,0.082677]
[1728578850237,0.1904,60534.0,60531.0,0.3608]
[1728578850529,0.082679,60532.0,60531.0,0.3608]
[1728578850733,0.202679,60532.0,60531.0,0.3608]
[1728578852022,0.12,60532.0,60526.0,0.082687]
[1728578852216,0.12,60532.0,60525.0,0.0038]
[1728578852217,0.082686,60527.0,60525.0,0.0038]
[1728578852543,0.082686,60527.0,60525.0,0.0008]
[1728578852544,0.129787,60526.0,60525.0,0.0008]
[1728578853830,0.130787,60526.0,60525.0,0.0058]
[1728578854028,0.131787,60526.0,60525.0,0.0088]
[1728578854430,0.131787,60526.0,60525.0,0.07470888]
[1728578855928,0.131787,60526.0,60525.0,0.0088]
[1728578856433,0.131787,60526.0,60525.0,0.07480165]
[1728578856935,0.131787,60526.0,60525.0,0.0088]
[1728578857234,0.131787,60526.0,60525.0,0.07480165]
[1728578858024,0.131787,60526.0,60525.0,0.0088]
[1728578858227,0.131787,60526.0,60525.0,0.07480165]
[1728578859129,0.131787,60526.0,60525.0,0.0088]
[1728578861623,0.131787,60526.0,60525.0,0.07484216]
[1728578862019,0.0491,60526.0,60525.0,0.34753016]
[1728578862227,0.0004,60534.0,60525.0,0.642288]
[1728578862525,0.083076,60534.0,60533.0,0.082678]
[1728578863830,0.083076,60534.0,60533.0,0.273678]
[1728578863831,0.0004,60534.0,60533.0,0.273678]
[1728578864225,0.0014,60534.0,60533.0,0.273678]
[1728578865430,0.084076,60534.0,60533.0,0.001]
[1728578865737,0.084076,60534.0,60533.0,0.083678]
[1728578866130,0.084076,60534.0,60533.0,0.001]
[1728578866329,0.464076,60534.0,60533.0,0.001]
[1728578866532,0.082687,60526.0,60525.0,0.37683616]
[1728578866736,0.082687,60526.0,60525.0,0.3616]
[1728578867341,0.443487,60526.0,60525.0,0.0008]
[1728578867735,0.443487,60526.0,60525.0,0.0108]
[1728578867736,0.445487,60526.0,60525.0,0.0108]
[1728578869342,0.46022357,60526.0,60525.0,0.0108]
[1728578869849,0.50672357,60526.0,60525.0,0.0108]
[1728578870551,0.50672357,60526.0,60525.0,0.093488]
[1728578870738,0.491987,60526.0,60525.0,0.093488]
[1728578873153,0.445487,60526.0,60525.0,0.36587442]
[1728578873351,0.445487,60526.0,60525.0,0.49208925]
[1728578873550,0.445487,60526.0,60525.0,0.40950835]
[1728578873943,0.445487,60526.0,60525.0,0.49208876]
[1728578875858,0.445487,60526.0,60525.0,0.30208876]
[1728578876652,0.445487,60526.0,60525.0,0.093488]
[1728578879554,0.445487,60526.0,60525.0,0.0108]
[1728578880445,0.445487,60526.0,60525.0,0.093488]
[1728578880842,0.445487,60526.0,60525.0,0.0108]
[1728578883056,0.445487,60526.0,60525.0,0.093488]
[1728578883447,0.635487,60526.0,60525.0,0.0108]
[1728578883654,0.6759829,60526.0,60525.0,0.0108]
[1728578884052,1.106287,60526.0,60517.0,0.002]
[1728578884248,0.443898,60518.0,60517.0,0.002]
[1728578885147,0.443898,60518.0,60517.0,0.06807185]
[1728578885355,0.443898,60518.0,60517.0,0.06805839]
[1728578885752,0.444898,60518.0,60517.0,0.07605839]
[1728578886059,0.444898,60518.0,60517.0,0.01]
[1728578886263,0.444898,60518.0,60517.0,0.07605839]
[1728578886453,0.444898,60518.0,60517.0,0.004]
[1728578886653,0.445898,60518.0,60517.0,0.01]
[1728578887149,0.445898,60518.0,60517.0,0.07605839]
[1728578887357,0.445898,60518.0,60517.0,0.01]
[1728578890254,0.445898,60518.0,60517.0,0.05950281]
[1728578890958,0.445898,60518.0,60517.0,0.01]
[1728578894868,0.082705,60513.0,60512.0,0.00247872]
[1728578895075,0.743505,60513.0,60512.0,0.00247872]
[1728578895265,0.743505,60513.0,60505.0,0.0004]
[1728578895266,1.15696,60513.0,60505.0,0.0004]
[1728578895458,0.443914,60506.0,60505.0,0.0004]
[1728578895658,0.203114,60506.0,60505.0,0.0004]
[1728578895864,0.249514,60506.0,60505.0,0.0004]
[1728578896373,0.295614,60506.0,60505.0,0.0004]
[1728578897054,0.296614,60506.0,60505.0,0.0004]
[1728578897971,0.297614,60506.0,60505.0,0.0004]
[1728578898272,0.31255858,60506.0,60505.0,0.0004]
[1728578898765,0.131514,60506.0,60505.0,0.083116]
[1728578898965,0.085114,60506.0,60505.0,0.083116]
[1728578899370,0.0024,60506.0,60505.0,0.083116]
[1728578899559,0.085114,60506.0,60505.0,0.083116]
[1728578900267,0.0024,60506.0,60505.0,0.083116]
[1728578900465,0.085114,60506.0,60505.0,0.083116]
[1728578900664,0.085114,60506.0,60505.0,0.1490575]
[1728578901571,0.085114,60506.0,60505.0,0.083116]
[1728578901774,0.0024,60506.0,60505.0,0.083116]
[1728578902468,0.0004,60513.0,60512.0,0.082706]
[1728578902666,0.0004,60513.0,60512.0,0.13216032]
[1728578902864,0.0004,60513.0,60512.0,0.443506]
[1728578903062,0.0004,60513.0,60512.0,1.539266]
[1728578903262,0.3608,60526.0,60513.0,0.578465]
[1728578903469,0.443478,60533.0,60525.0,0.272688]
[1728578903667,0.082682,60530.0,60529.0,0.27268]
[1728578903874,0.443478,60533.0,60532.0,0.082679]
[1728578903875,0.082678,60533.0,60532.0,0.082679]
[1728578905275,0.091678,60533.0,60532.0,0.082679]
[1728578905567,0.009,60533.0,60532.0,0.13211928]
[1728578905759,0.003,60533.0,60532.0,0.04944028]
[1728578906075,0.003,60533.0,60532.0,0.272679]
[1728578906464,0.003,60533.0,60532.0,0.33860797]
[1728578906768,0.003,60533.0,60532.0,0.272679]
[1728578906981,0.003,60533.0,60532.0,1.368279]
[1728578907375,0.0004,60540.0,60538.0,0.082671]
[1728578907673,0.127157,60549.0,60548.0,0.082657]
[1728578908269,0.0445,60549.0,60548.0,0.082657]
[1728578909065,0.028,60549.0,60548.0,0.082657]
[1728578910162,0.110656,60549.0,60548.0,0.082657]
[1728578910558,0.028,60549.0,60548.0,0.082657]
[1728578911565,0.110656,60549.0,60548.0,0.082657]
[1728578911976,0.028,60549.0,60543.0,0.3608]
[1728578912168,0.082668,60540.0,60539.0,0.0004]
[1728578912365,0.273068,60540.0,60539.0,0.0004]
[1728578913265,0.273068,60540.0,60539.0,0.083069]
[1728578913462,0.083068,60540.0,60539.0,0.083069]
[1728578913668,0.0004,60540.0,60539.0,0.273069]
[1728578914374,0.0004,60540.0,60539.0,0.083069]